Workbook

Sheet Forside
C3: Holdbarhetsforsøk
C5: Modell: | D5: Buksemetoden
C8: Forsøket er utført ved:
C9: Utført I perioden:
C10: Kontaktperson:
C11: (navn, epost eller telefonnr.)
C12: Navn på komponent:
C13: Prøvemateriale:

Sheet Beskrivelse av forsø
A1: BESKRIVELSE AV FORSØKET
A3: Komponent | B3: f.eks. S- CK
A4: Hvilket instrument er benyttet?
A7: Hvilken analysemetode er benyttet?
A10: Hvilket reagens er benyttet?
A13: Er forsøket gjennomført under tilsvarende betingelser som de som gjelder ved vanlig rutinedrift (kryss av):
B14: ja, gjennomført under rutinebetingelser
B15: ja, rutinebetingelser er simulert
B16: nei
A18: Hvilke transportformer er testet/simulert?
B19: Postgang
B20: Hentetjeneste
B21: Rørpost
B22: Annet:
A24: NB! Sett inn flere rader dersom du trenger det.
A25: Gi en beskrivelse av hver betingelse: | B25: Betingelse 0 (Ref) | C25: Betingelse 1 | D25: Betingelse 2 | E25: Betingelse 3 | F25: Betingelse 4 | G25: Betingelse 5
A26: Prøverør type
A27: Tid fra prøvetaking til sentrifugering (min.)
A28: Tid fra prøvetaking til analysering (min/timer/dager/uker)
A29: Tid fra sentrifugering til analysering (min/timer/dager/uker)
A30: Temperatur før sentrifugering (◦C)
A31: Temperatur etter sentrifugering (◦C)
A32: Sentrifugeringsegenskaper*:
A33: Hastighet (G)
A34: Temperatur (◦C)
A35: Tid (min.)
A36: Spesielle betingelser
A37: Luftfuktighet (g/m3)
A38: pH
A39: Bruk av tørris (bare noter hvis brukt)
A40: Har prøven vært frosset? Oppgi temperatur
A41: Andre betingelser (oppgi)
A43: *Dersom det er brukt dobbel sentrifugeringstid angis hastighet / tid / temperatur både for 1. og 2. sentrifugering

Sheet Bukseplott
A1: Holdbarhet, buksemetode | H1: Konstant analytisk CV for alle konsentrasjoner (J/N)? | K1: N | L1: =IF(K1="N","Sa","CVa") -> Sa | M1: 1 | N1: Sigma
L2: Mål 1 | M2: 2 | N2: =Mål_1/s -> 2
L3: Mål 2 | M3: 3 | N3: =Mål_2/s -> 3
A4: =OR(K1="N",K1="n") -> TRUE | B4: 0-still plott: CTRL x | E4: Rens plott: CTRL z | L4: TEa | M4: 3 | N4: =TEa/s -> 3
A5: Prøve nr | B5: Betingelse 1 | E5: Betingelse 2 | H5: Betingelse 3 | K5: Betingelse 4 | N5: Betingelse 5
A6: %>TEa | B6: =AF6 -> 0 | E6: =AG6 -> 0 | H6: =AH6 -> 0 | K6: =AI6 ->  | N6: =AJ6 ->  | AF6: =IF(COUNT(AF8:AF45)>0,(COUNTIF(AF8:AF45,">"&$N4)+COUNTIF(AF8:AF45,"<-"&$N4))/COUNT(AF8:AF45),"") -> 0 | AG6: =IF(COUNT(AG8:AG45)>0,(COUNTIF(AG8:AG45,">"&$N4)+COUNTIF(AG8:AG45,"<-"&$N4))/COUNT(AG8:AG45),"") -> 0 | AH6: 0
B7: Ref | C7: R | D7: Kum | E7: Ref | F7: R | G7: Kum | H7: Ref | I7: R | J7: Kum | K7: Ref | L7: R | M7: Kum | N7: Ref | O7: R | P7: Kum | S7: 1 | T7: =K_1 -> 2 | V7: =K_2 -> 3 | AF7: =B5 -> Betingelse 1 | AG7: =E5 -> Betingelse 2 | AH7: =H5 -> Betingelse 3 | AI7: =K5 -> Betingelse 4 | AJ7: =N5 -> Betingelse 5 | AK7: TEa
A8: Prøve 1 | B8: 4 | C8: 3 | D8: =IF(C8="","",IF(fast_s,(C8-B8)/s,LN(C8/B8)/s)) -> -1 | E8: 4 | F8: 2 | G8: =IF(F8="","",IF(fast_s,(F8-E8)/s,LN(F8/E8)/s)) -> -2 | H8: 4 | I8: 2 | J8: =IF(I8="","",IF(fast_s,(I8-H8)/s,LN(I8/H8)/s)) -> -2 | M8: =IF(L8="","",IF(fast_s,(L8-K8)/s,LN(L8/K8)/s)) ->  | P8: =IF(O8="","",IF(fast_s,(O8-N8)/s,LN(O8/N8)/s)) ->  | R8: 1 | S8: 7.775 | T8: =R8/K_1^2 -> 0.25 | U8: =S8/K_1 -> 3.8875 | V8: =R8/K_2^2 -> 0.1111111111 | W8: =S8/K_2 -> 2.591666667 | X8: 1 | Y8: 7.775 | Z8: 0 | AA8: 6.194301075 | AB8: 0 | AC8: 4.786505376 | AD8: 0 | AE8: =A8 -> Prøve 1 | AF8: =IF(D8="","",D8) -> -1 | AG8: =IF(G8="","",G8) -> -2 | AH8: =IF(J8="","",J8) -> -2 | AI8: =IF(M8="","",M8) ->  | AJ8: =IF(P8="","",P8) ->  | AK8: =-N$4 -> -3 | AL8: =N$4 -> 3
A9: Prøve 2 | B9: 5 | C9: 6 | D9: =IF(C9="","",D8+IF(fast_s,(C9-B9)/s,LN(C9/B9)/s)) -> 0 | E9: 5 | F9: 4.5 | G9: =IF(F9="","",G8+IF(fast_s,(F9-E9)/s,LN(F9/E9)/s)) -> -2.5 | H9: 5 | I9: 2 | J9: =IF(I9="","",J8+IF(fast_s,(I9-H9)/s,LN(I9/H9)/s)) -> -5 | M9: =IF(L9="","",M8+IF(fast_s,(L9-K9)/s,LN(L9/K9)/s)) ->  | P9: =IF(O9="","",P8+IF(fast_s,(O9-N9)/s,LN(O9/N9)/s)) ->  | R9: 2 | S9: 8.275 | T9: =R9/K_1^2 -> 0.5 | U9: =S9/K_1 -> 4.1375 | V9: =R9/K_2^2 -> 0.2222222222 | W9: =S9/K_2 -> 2.758333333 | X9: 2 | Y9: 8.275 | Z9: 0 | AA9: 6.86206646 | AB9: 0 | AC9: 5.743931856 | AD9: 0 | AE9: =A9 -> Prøve 2 | AF9: =IF(D9="","",D9-D8) -> 1 | AG9: =IF(G9="","",G9-G8) -> -0.5 | AH9: =IF(J9="","",J9-J8) -> -3 | AI9: =IF(M9="","",M9-M8) ->  | AJ9: =IF(P9="","",P9-P8) ->  | AK9: =-N$4 -> -3 | AL9: =N$4 -> 3
A10: Prøve 3 | B10: 4 | C10: 5 | D10: 1 | E10: 4 | F10: 3.25 | G10: -3.25 | H10: 4 | I10: 2 | J10: -7 | R10: 3 | S10: 8.775 | T10: 0.75 | U10: 4.3875 | V10: 0.3333333333 | W10: 2.925 | X10: 3 | Y10: 8.775 | Z10: 0 | AA10: 7.529831844 | AB10: 0 | AC10: 6.701358336 | AD10: 0 | AE10: Prøve 3 | AF10: =IF(D10="","",D10-D9) -> 1 | AG10: -0.75 | AH10: -2 | AK10: -3 | AL10: 3
A11: Prøve 4 | B11: 6 | C11: 5 | D11: 0 | E11: 6 | F11: 5.7 | G11: -3.55 | H11: 6 | I11: 5.4 | J11: -7.6 | R11: 4 | S11: 9.275 | T11: 1 | U11: 4.6375 | V11: 0.4444444444 | W11: 3.091666667 | X11: 4 | Y11: 9.275 | Z11: 0 | AA11: 8.197597228 | AB11: 0 | AC11: 7.658784816 | AD11: 0.7 | AE11: Prøve 4 | AF11: -1 | AG11: -0.3 | AH11: -0.6 | AK11: -3 | AL11: 3
A12: Prøve 5 | B12: 8 | C12: 7 | D12: -1 | E12: 8 | F12: 7.15 | G12: -4.4 | H12: 8 | I12: 5 | J12: -10.6 | R12: 5 | S12: 9.775 | T12: 1.25 | U12: 4.8875 | V12: 0.5555555556 | W12: 3.258333333 | X12: 5 | Y12: 9.775 | Z12: 0 | AA12: 8.865362613 | AB12: 0 | AC12: 8.616211296 | AD12: 2.7 | AE12: Prøve 5 | AF12: -1 | AG12: -0.85 | AH12: -3 | AK12: -3 | AL12: 3
A13: Prøve 6 | B13: 6 | C13: 4 | D13: -3 | E13: 6 | F13: 5 | G13: -5.4 | R13: 6 | S13: 10.275 | T13: 1.5 | U13: 5.1375 | V13: 0.6666666667 | W13: 3.425 | X13: 6 | Y13: 10.275 | Z13: 0 | AA13: 9.533127997 | AB13: 0 | AC13: 9.573637776 | AD13: 4 | AE13: Prøve 6 | AF13: -2 | AG13: -1 | AK13: -3 | AL13: 3
A14: Prøve 7 | B14: 3 | C14: 3 | D14: -3 | E14: 3 | F14: 1.5 | G14: -6.9 | R14: 7 | S14: 10.775 | T14: 1.75 | U14: 5.3875 | V14: 0.7777777778 | W14: 3.591666667 | X14: 7 | Y14: 10.775 | Z14: 0 | AA14: 10.20089338 | AB14: 0.8 | AC14: 10.53106426 | AD14: 5.4 | AE14: Prøve 7 | AF14: 0 | AG14: -1.5 | AK14: -3 | AL14: 3
A15: Prøve 8 | B15: 5 | C15: 5 | D15: -3 | E15: 5 | F15: 4 | G15: -7.9 | R15: 8 | S15: 11.275 | T15: 2 | U15: 5.6375 | V15: 0.8888888889 | W15: 3.758333333 | X15: 8 | Y15: 11.275 | Z15: 0 | AA15: 10.86865877 | AB15: 2.3 | AC15: 11.48849074 | AD15: 7 | AE15: Prøve 8 | AF15: 0 | AG15: -1 | AK15: -3 | AL15: 3
A16: Prøve 9 | B16: 7 | C16: 5 | D16: -5 | E16: 7 | F16: 6.5 | G16: -8.4 | R16: 9 | S16: 11.775 | T16: 2.25 | U16: 5.8875 | V16: 1 | W16: 3.925 | X16: 9 | Y16: 11.775 | Z16: 0 | AA16: 11.53642415 | AB16: 3.3 | AC16: 12.44591722 | AD16: 9.2 | AE16: Prøve 9 | AF16: -2 | AG16: -0.5 | AK16: -3 | AL16: 3
A17: Prøve 10 | B17: 6 | C17: 5 | D17: -6 | E17: 6 | F17: 7 | G17: -7.4 | R17: 10 | S17: 12.275 | T17: 2.5 | U17: 6.1375 | V17: 1.111111111 | W17: 4.091666667 | X17: 10 | Y17: 12.275 | Z17: 0 | AA17: 12.20418953 | AB17: 4.2 | AC17: 12.94377899 | AD17: 12.95005905 | AE17: Prøve 10 | AF17: -1 | AG17: 1 | AK17: -3 | AL17: 3
A18: Prøve 11 | B18: 7 | C18: 7 | D18: -6 | E18: 7 | F18: 5 | G18: -9.4 | R18: 11 | S18: 12.775 | T18: 2.75 | U18: 6.3875 | V18: 1.222222222 | W18: 4.258333333 | X18: 11 | Y18: 12.775 | Z18: 0 | AA18: 12.87195492 | AB18: 5.1 | AE18: Prøve 11 | AF18: 0 | AG18: -2 | AK18: -3 | AL18: 3
A19: Prøve 12 | B19: 15 | C19: 14 | D19: -7 | E19: 15 | F19: 12.5 | G19: -11.9 | R19: 12 | S19: 13.275 | T19: 3 | U19: 6.6375 | V19: 1.333333333 | W19: 4.425 | X19: 12 | Y19: 13.275 | Z19: 0 | AA19: 13.5397203 | AB19: 6 | AE19: Prøve 12 | AF19: -1 | AG19: -2.5 | AK19: -3 | AL19: 3
A20: Prøve 13 | B20: 12 | C20: 12 | D20: -7 | E20: 12 | F20: 11 | G20: -12.9 | R20: 13 | S20: 13.775 | T20: 3.25 | U20: 6.8875 | V20: 1.444444444 | W20: 4.591666667 | X20: 13 | Y20: 13.775 | Z20: 0 | AA20: 14.20748569 | AB20: 7.3 | AE20: Prøve 13 | AF20: 0 | AG20: -1 | AK20: -3 | AL20: 3
A21: Prøve 14 | B21: 9 | C21: 9 | D21: -7 | E21: 9 | F21: 7.5 | G21: -14.4 | R21: 14 | S21: 14.275 | T21: 3.5 | U21: 7.1375 | V21: 1.555555556 | W21: 4.758333333 | X21: 14 | Y21: 14.275 | Z21: 0 | AA21: 14.87525107 | AB21: 8.7 | AE21: Prøve 14 | AF21: 0 | AG21: -1.5 | AK21: -3 | AL21: 3
A22: Prøve 15 | B22: 13 | C22: 13 | D22: -7 | R22: 15 | S22: 14.775 | T22: 3.75 | U22: 7.3875 | V22: 1.666666667 | W22: 4.925 | X22: 15 | Y22: 14.775 | Z22: 0.2 | AA22: 15.54301646 | AB22: 10 | AE22: Prøve 15 | AF22: 0 | AK22: -3 | AL22: 3
A23: Prøve 16 | B23: 15 | C23: 14 | D23: -8 | R23: 16 | S23: 15.275 | T23: 4 | U23: 7.6375 | V23: 1.777777778 | W23: 5.091666667 | X23: 16 | Y23: 15.275 | Z23: 1.6 | AA23: 16.21078184 | AB23: 12 | AE23: Prøve 16 | AF23: -1 | AK23: -3 | AL23: 3
A24: Prøve 17 | B24: 9 | C24: 9 | D24: -8 | R24: 17 | S24: 15.775 | T24: 4.25 | U24: 7.8875 | V24: 1.888888889 | W24: 5.258333333 | X24: 17 | Y24: 15.775 | Z24: 2.2 | AA24: 16.87854723 | AB24: 14.5 | AE24: Prøve 17 | AF24: 0 | AK24: -3 | AL24: 3
A25: Prøve 18 | B25: 7 | C25: 7 | D25: -8 | R25: 18 | S25: 16.275 | T25: 4.5 | U25: 8.1375 | V25: 2 | W25: 5.425 | X25: 18 | Y25: 16.275 | Z25: 3 | AA25: 17.17 | AB25: 17.17 | AE25: Prøve 18 | AF25: 0 | AK25: -3 | AL25: 3
A26: Prøve 19 | B26: 12 | C26: 12 | D26: -8 | R26: 19 | S26: 16.775 | T26: 4.75 | U26: 8.3875 | V26: 2.111111111 | W26: 5.591666667 | X26: 19 | Y26: 16.775 | Z26: 3.6 | AE26: Prøve 19 | AF26: 0 | AK26: -3 | AL26: 3
A27: Prøve 20 | B27: 15 | C27: 15 | D27: -8 | R27: 20 | S27: 17.275 | T27: 5 | U27: 8.6375 | V27: 2.222222222 | W27: 5.758333333 | X27: 20 | Y27: 17.275 | Z27: 4.2 | AE27: Prøve 20 | AF27: 0 | AK27: -3 | AL27: 3
A28: Prøve 21 | R28: 21 | S28: 17.775 | T28: 5.25 | U28: 8.8875 | V28: 2.333333333 | W28: 5.925 | X28: 21 | Y28: 17.775 | Z28: 5 | AE28: Prøve 21 | AK28: -3 | AL28: 3
A29: Prøve 22 | R29: 22 | S29: 18.275 | T29: 5.5 | U29: 9.1375 | V29: 2.444444444 | W29: 6.091666667 | X29: 22 | Y29: 18.275 | Z29: 5.6 | AE29: Prøve 22 | AK29: -3 | AL29: 3
A30: Prøve 23 | R30: 23 | S30: 18.775 | T30: 5.75 | U30: 9.3875 | V30: 2.555555556 | W30: 6.258333333 | X30: 23 | Y30: 18.775 | Z30: 6.4 | AE30: Prøve 23 | AK30: -3 | AL30: 3
A31: Prøve 24 | R31: 24 | S31: 19.275 | T31: 6 | U31: 9.6375 | V31: 2.666666667 | W31: 6.425 | X31: 24 | Y31: 19.275 | Z31: 7 | AE31: Prøve 24 | AK31: -3 | AL31: 3
A32: Prøve 25 | R32: 25 | S32: 19.775 | T32: 6.25 | U32: 9.8875 | V32: 2.777777778 | W32: 6.591666667 | X32: 25 | Y32: 19.775 | Z32: 7.8 | AE32: Prøve 25 | AK32: -3 | AL32: 3
A33: Prøve 26 | R33: 26 | S33: 20.275 | T33: 6.5 | U33: 10.1375 | V33: 2.888888889 | W33: 6.758333333 | X33: 26 | Y33: 20.275 | Z33: 8.6 | AE33: Prøve 26 | AK33: -3 | AL33: 3
A34: Prøve 27 | R34: 27 | S34: 20.775 | T34: 6.75 | U34: 10.3875 | V34: 3 | W34: 6.925 | X34: 27 | Y34: 20.775 | Z34: 9.4 | AE34: Prøve 27 | AK34: -3 | AL34: 3
A35: Prøve 28 | R35: 28 | S35: 21.275 | T35: 7 | U35: 10.6375 | V35: 3.111111111 | W35: 7.091666667 | X35: 28 | Y35: 21.275 | Z35: 10.2 | AE35: Prøve 28 | AK35: -3 | AL35: 3
A36: Prøve 29 | R36: 29 | S36: 21.775 | T36: 7.25 | U36: 10.8875 | V36: 3.222222222 | W36: 7.258333333 | X36: 29 | Y36: 21.775 | Z36: 11.2 | AE36: Prøve 29 | AK36: -3 | AL36: 3
A37: Prøve 30 | R37: 30 | S37: 22.275 | T37: 7.5 | U37: 11.1375 | V37: 3.333333333 | W37: 7.425 | X37: 30 | Y37: 22.275 | Z37: 12 | AE37: Prøve 30 | AK37: -3 | AL37: 3
A38: Prøve 31 | H38: =IF($B38="","",$B38) ->  | N38: =IF($B38="","",$B38) ->  | R38: 31 | S38: 22.775 | T38: 7.75 | U38: 11.3875 | V38: 3.444444444 | W38: 7.591666667 | X38: 31 | Y38: 22.775 | Z38: 13 | AE38: Prøve 31 | AK38: -3 | AL38: 3
A39: Prøve 32 | R39: 32 | S39: 23.275 | T39: 8 | U39: 11.6375 | V39: 3.555555556 | W39: 7.758333333 | X39: 32 | Y39: 23.275 | Z39: 14 | AE39: Prøve 32 | AK39: -3 | AL39: 3
A40: Prøve 33 | R40: 33 | S40: 23.775 | T40: 8.25 | U40: 11.8875 | V40: 3.666666667 | W40: 7.925 | X40: 33 | Y40: 23.775 | Z40: 15.2 | AE40: Prøve 33 | AK40: -3 | AL40: 3
A41: Prøve 34 | R41: 34 | S41: 24.275 | T41: 8.5 | U41: 12.1375 | V41: 3.777777778 | W41: 8.091666667 | X41: 34 | Y41: 24.275 | Z41: 16.4 | AE41: Prøve 34 | AK41: -3 | AL41: 3
A42: Prøve 35 | R42: 35 | S42: 24.775 | T42: 8.75 | U42: 12.3875 | V42: 3.888888889 | W42: 8.258333333 | X42: 35 | Y42: 24.775 | Z42: 17.8 | AE42: Prøve 35 | AK42: -3 | AL42: 3
A43: Prøve 36 | R43: 36 | S43: 25.275 | T43: 9 | U43: 12.6375 | V43: 4 | W43: 8.425 | X43: 36 | Y43: 25.275 | Z43: 19.4 | AE43: Prøve 36 | AK43: -3 | AL43: 3
A44: Prøve 37 | R44: 37 | S44: 25.775 | T44: 9.25 | U44: 12.8875 | V44: 4.111111111 | W44: 8.591666667 | X44: 37 | Y44: 25.775 | Z44: 21.6 | AE44: Prøve 37 | AK44: -3 | AL44: 3
A45: Prøve 38 | R45: 37.82 | S45: 26.185 | T45: 9.455 | U45: 13.0925 | V45: 4.202222222 | W45: 8.728333333 | X45: 38 | Y45: 26.185 | Z45: 26.185 | AE45: Prøve 38 | AK45: -3 | AL45: 3
R46: 36 | S46: 19.4 | T46: 9 | U46: 9.7 | V46: 4 | W46: 6.466666667 | X46: 40
R47: 35 | S47: 17.8 | T47: 8.75 | U47: 8.9 | V47: 3.888888889 | W47: 5.933333333
R48: 34 | S48: 16.4 | T48: 8.5 | U48: 8.2 | V48: 3.777777778 | W48: 5.466666667
R49: 33 | S49: 15.2 | T49: 8.25 | U49: 7.6 | V49: 3.666666667 | W49: 5.066666667
R50: 32 | S50: 14 | T50: 8 | U50: 7 | V50: 3.555555556 | W50: 4.666666667
R51: 31 | S51: 13 | T51: 7.75 | U51: 6.5 | V51: 3.444444444 | W51: 4.333333333
R52: 30 | S52: 12 | T52: 7.5 | U52: 6 | V52: 3.333333333 | W52: 4
R53: 29 | S53: 11.2 | T53: 7.25 | U53: 5.6 | V53: 3.222222222 | W53: 3.733333333
R54: 28 | S54: 10.2 | T54: 7 | U54: 5.1 | V54: 3.111111111 | W54: 3.4
R55: 27 | S55: 9.4 | T55: 6.75 | U55: 4.7 | V55: 3 | W55: 3.133333333
R56: 26 | S56: 8.6 | T56: 6.5 | U56: 4.3 | V56: 2.888888889 | W56: 2.866666667
R57: 25 | S57: 7.8 | T57: 6.25 | U57: 3.9 | V57: 2.777777778 | W57: 2.6
R58: 24 | S58: 7 | T58: 6 | U58: 3.5 | V58: 2.666666667 | W58: 2.333333333
R59: 23 | S59: 6.4 | T59: 5.75 | U59: 3.2 | V59: 2.555555556 | W59: 2.133333333
R60: 22 | S60: 5.6 | T60: 5.5 | U60: 2.8 | V60: 2.444444444 | W60: 1.866666667
R61: 21 | S61: 5 | T61: 5.25 | U61: 2.5 | V61: 2.333333333 | W61: 1.666666667
R62: 20 | S62: 4.2 | T62: 5 | U62: 2.1 | V62: 2.222222222 | W62: 1.4
R63: 19 | S63: 3.6 | T63: 4.75 | U63: 1.8 | V63: 2.111111111 | W63: 1.2
R64: 18 | S64: 3 | T64: 4.5 | U64: 1.5 | V64: 2 | W64: 1
R65: 17 | S65: 2.2 | T65: 4.25 | U65: 1.1 | V65: 1.888888889 | W65: 0.7333333333
R66: 16 | S66: 1.6 | T66: 4 | U66: 0.8 | V66: 1.777777778 | W66: 0.5333333333
R67: 15 | S67: 0.2 | T67: 3.75 | U67: 0.1 | V67: 1.666666667 | W67: 0.06666666667
R68: 14.94 | S68: 0 | T68: 3.735 | U68: 0 | V68: 1.66 | W68: 0
R69: 15 | S69: -0.2 | T69: 3.75 | U69: -0.1 | V69: 1.666666667 | W69: -0.06666666667
R70: 16 | S70: -1.6 | T70: 4 | U70: -0.8 | V70: 1.777777778 | W70: -0.5333333333
R71: 17 | S71: -2.2 | T71: 4.25 | U71: -1.1 | V71: 1.888888889 | W71: -0.7333333333
R72: 18 | S72: -3 | T72: =R72/K_1^2 -> 4.5 | U72: =S72/K_1 -> -1.5 | V72: =R72/K_2^2 -> 2 | W72: =S72/K_2 -> -1
R73: 19 | S73: -3.6 | T73: 4.75 | U73: -1.8 | V73: 2.111111111 | W73: -1.2
R74: 20 | S74: -4.2 | T74: 5 | U74: -2.1 | V74: 2.222222222 | W74: -1.4
R75: 21 | S75: -5 | T75: 5.25 | U75: -2.5 | V75: 2.333333333 | W75: -1.666666667
R76: 22 | S76: -5.6 | T76: 5.5 | U76: -2.8 | V76: 2.444444444 | W76: -1.866666667
R77: 23 | S77: -6.4 | T77: 5.75 | U77: -3.2 | V77: 2.555555556 | W77: -2.133333333
R78: 24 | S78: -7 | T78: 6 | U78: -3.5 | V78: 2.666666667 | W78: -2.333333333
R79: 25 | S79: -7.8 | T79: 6.25 | U79: -3.9 | V79: 2.777777778 | W79: -2.6
R80: 26 | S80: -8.6 | T80: 6.5 | U80: -4.3 | V80: 2.888888889 | W80: -2.866666667
R81: 27 | S81: -9.4 | T81: 6.75 | U81: -4.7 | V81: 3 | W81: -3.133333333
R82: 28 | S82: -10.2 | T82: 7 | U82: -5.1 | V82: 3.111111111 | W82: -3.4
R83: 29 | S83: -11.2 | T83: 7.25 | U83: -5.6 | V83: 3.222222222 | W83: -3.733333333
R84: 30 | S84: -12 | T84: 7.5 | U84: -6 | V84: 3.333333333 | W84: -4
R85: 31 | S85: -13 | T85: 7.75 | U85: -6.5 | V85: 3.444444444 | W85: -4.333333333
R86: 32 | S86: -14 | T86: 8 | U86: -7 | V86: 3.555555556 | W86: -4.666666667
R87: 33 | S87: -15.2 | T87: 8.25 | U87: -7.6 | V87: 3.666666667 | W87: -5.066666667
R88: 34 | S88: -16.4 | T88: 8.5 | U88: -8.2 | V88: 3.777777778 | W88: -5.466666667
R89: 35 | S89: -17.8 | T89: 8.75 | U89: -8.9 | V89: 3.888888889 | W89: -5.933333333
R90: 36 | S90: -19.4 | T90: 9 | U90: -9.7 | V90: 4 | W90: -6.466666667
R91: 37 | S91: -21.6 | T91: 9.25 | U91: -10.8 | V91: 4.111111111 | W91: -7.2
R92: 37.82 | S92: -26.185 | T92: 9.455 | U92: -13.0925 | V92: 4.202222222 | W92: -8.728333333
R93: 37 | S93: -25.775 | T93: 9.25 | U93: -12.8875 | V93: 4.111111111 | W93: -8.591666667
R94: 36 | S94: -25.275 | T94: 9 | U94: -12.6375 | V94: 4 | W94: -8.425
R95: 35 | S95: -24.775 | T95: 8.75 | U95: -12.3875 | V95: 3.888888889 | W95: -8.258333333
R96: 34 | S96: -24.275 | T96: 8.5 | U96: -12.1375 | V96: 3.777777778 | W96: -8.091666667
R97: 33 | S97: -23.775 | T97: 8.25 | U97: -11.8875 | V97: 3.666666667 | W97: -7.925
R98: 32 | S98: -23.275 | T98: 8 | U98: -11.6375 | V98: 3.555555556 | W98: -7.758333333
R99: 31 | S99: -22.775 | T99: 7.75 | U99: -11.3875 | V99: 3.444444444 | W99: -7.591666667
R100: 30 | S100: -22.275 | T100: 7.5 | U100: -11.1375 | V100: 3.333333333 | W100: -7.425
R101: 29 | S101: -21.775 | T101: 7.25 | U101: -10.8875 | V101: 3.222222222 | W101: -7.258333333
R102: 28 | S102: -21.275 | T102: 7 | U102: -10.6375 | V102: 3.111111111 | W102: -7.091666667
R103: 27 | S103: -20.775 | T103: 6.75 | U103: -10.3875 | V103: 3 | W103: -6.925
R104: 26 | S104: -20.275 | T104: 6.5 | U104: -10.1375 | V104: 2.888888889 | W104: -6.758333333
R105: 25 | S105: -19.775 | T105: 6.25 | U105: -9.8875 | V105: 2.777777778 | W105: -6.591666667
R106: 24 | S106: -19.275 | T106: 6 | U106: -9.6375 | V106: 2.666666667 | W106: -6.425
R107: 23 | S107: -18.775 | T107: 5.75 | U107: -9.3875 | V107: 2.555555556 | W107: -6.258333333
R108: 22 | S108: -18.275 | T108: 5.5 | U108: -9.1375 | V108: 2.444444444 | W108: -6.091666667
R109: 21 | S109: -17.775 | T109: 5.25 | U109: -8.8875 | V109: 2.333333333 | W109: -5.925
R110: 20 | S110: -17.275 | T110: 5 | U110: -8.6375 | V110: 2.222222222 | W110: -5.758333333
R111: 19 | S111: -16.775 | T111: 4.75 | U111: -8.3875 | V111: 2.111111111 | W111: -5.591666667
R112: 18 | S112: -16.275 | T112: 4.5 | U112: -8.1375 | V112: 2 | W112: -5.425
R113: 17 | S113: -15.775 | T113: 4.25 | U113: -7.8875 | V113: 1.888888889 | W113: -5.258333333
R114: 16 | S114: -15.275 | T114: 4 | U114: -7.6375 | V114: 1.777777778 | W114: -5.091666667
R115: 15 | S115: -14.775 | T115: 3.75 | U115: -7.3875 | V115: 1.666666667 | W115: -4.925
R116: 14 | S116: -14.275 | T116: 3.5 | U116: -7.1375 | V116: 1.555555556 | W116: -4.758333333
R117: 13 | S117: -13.775 | T117: 3.25 | U117: -6.8875 | V117: 1.444444444 | W117: -4.591666667
R118: 12 | S118: -13.275 | T118: 3 | U118: -6.6375 | V118: 1.333333333 | W118: -4.425
R119: 11 | S119: -12.775 | T119: 2.75 | U119: -6.3875 | V119: 1.222222222 | W119: -4.258333333
R120: 10 | S120: -12.275 | T120: 2.5 | U120: -6.1375 | V120: 1.111111111 | W120: -4.091666667
R121: 9 | S121: -11.775 | T121: 2.25 | U121: -5.8875 | V121: 1 | W121: -3.925
R122: 8 | S122: -11.275 | T122: 2 | U122: -5.6375 | V122: 0.8888888889 | W122: -3.758333333
R123: 7 | S123: -10.775 | T123: 1.75 | U123: -5.3875 | V123: 0.7777777778 | W123: -3.591666667
R124: 6 | S124: -10.275 | T124: 1.5 | U124: -5.1375 | V124: 0.6666666667 | W124: -3.425
R125: 5 | S125: -9.775 | T125: 1.25 | U125: -4.8875 | V125: 0.5555555556 | W125: -3.258333333
R126: 4 | S126: -9.275 | T126: 1 | U126: -4.6375 | V126: 0.4444444444 | W126: -3.091666667
R127: 3 | S127: -8.775 | T127: 0.75 | U127: -4.3875 | V127: 0.3333333333 | W127: -2.925
R128: 2 | S128: -8.275 | T128: 0.5 | U128: -4.1375 | V128: 0.2222222222 | W128: -2.758333333
R129: 1 | S129: -7.775 | T129: 0.25 | U129: -3.8875 | V129: 0.1111111111 | W129: -2.591666667

Sheet Konklusjon
B3: Vurdering av funn og annen viktig informasjon til forsøket:
B15: Konklusjon:
B23: Dato og signatur:
